bitfinex-derivatives/quotes_BTCF0:USTF0_20250424
["timestamp","ask_amount","ask_price","bid_price","bid_amount"]
[1745508243695,0.5431767,93274.0,93273.0,0.1106]
[1745508243893,0.1823767,93274.0,93273.0,0.1106]
[1745508244095,0.5431767,93274.0,93273.0,0.1106]
[1745508244793,1.0431767,93274.0,93273.0,0.1106]
[1745508244996,1.0441767,93274.0,93273.0,0.1126]
[1745508245186,0.5762,93274.0,93273.0,0.2197778]
[1745508245392,0.6843767,93274.0,93273.0,0.2217778]
[1745508245583,0.36457504,93290.0,93289.0,0.1071594]
[1745508245786,0.1287796,93290.0,93287.0,0.0535803]
[1745508245987,0.1071594,93289.0,93288.0,0.1732]
[1745508246193,0.1071594,93289.0,93288.0,0.3452]
[1745508248099,0.1843594,93289.0,93288.0,0.3462]
[1745508248486,0.1843594,93289.0,93288.0,0.4533606]
[1745508248689,0.1843594,93289.0,93288.0,0.3462]
[1745508250195,0.6843594,93289.0,93288.0,0.1163]
[1745508250893,0.6843594,93289.0,93288.0,0.0591]
[1745508251998,0.6091594,93289.0,93288.0,0.0591]
[1745508252186,0.6843594,93289.0,93288.0,0.0591]
[1745508252506,0.5772,93289.0,93288.0,0.1662606]
[1745508252794,0.6843594,93289.0,93288.0,0.0591]
[1745508252990,0.1843594,93289.0,93288.0,0.0591]
[1745508253191,0.1843594,93289.0,93288.0,0.3382606]
[1745508253390,0.1843594,93289.0,93288.0,0.2857]
[1745508255301,0.1843594,93289.0,93288.0,0.2311]
[1745508255485,0.1843594,93289.0,93288.0,0.173]
[1745508255992,0.2947594,93289.0,93288.0,0.173]
[1745508256201,0.2947594,93289.0,93288.0,0.001]
[1745508256397,0.7947594,93289.0,93288.0,0.001]
[1745508258191,0.7420594,93289.0,93288.0,0.001]
[1745508263099,0.6668594,93289.0,93288.0,0.001]
[1745508263305,0.6843194,93289.0,93288.0,0.001]
[1745508264292,0.1843194,93289.0,93288.0,0.173]
[1745508266297,0.1843194,93289.0,93288.0,0.183]
[1745508266497,0.1843194,93289.0,93288.0,0.173]
[1745508267102,0.6843194,93289.0,93288.0,0.001]
[1745508268304,0.7400194,93289.0,93288.0,0.001]
[1745508273399,0.1071847,93267.0,93266.0,0.0010722]
[1745508273715,0.4679824,93269.0,93268.0,0.1071835]
[1745508274015,0.4679824,93269.0,93266.0,0.0546645]
[1745508274016,0.1071835,93268.0,93267.0,0.1113]
[1745508274403,0.1071835,93268.0,93267.0,0.2184847]
[1745508274711,0.1071835,93268.0,93267.0,0.1113]
[1745508274917,0.1071835,93268.0,93267.0,0.1687]
[1745508275315,0.1071835,93268.0,93267.0,0.3407]
[1745508275814,0.1071835,93268.0,93267.0,0.4478847]
[1745508276217,0.1081835,93268.0,93267.0,0.4518847]
[1745508276417,0.1081835,93268.0,93267.0,0.7031047]
[1745508276418,0.1091835,93268.0,93267.0,0.7031047]
[1745508277011,0.1091835,93268.0,93267.0,0.5958847]
[1745508277217,0.1091835,93268.0,93267.0,0.7031047]
[1745508277923,0.1091835,93268.0,93267.0,0.5631047]
[1745508278612,0.1091835,93268.0,93267.0,0.7031047]
[1745508279515,0.1091835,93268.0,93267.0,0.45592]
[1745508280012,0.1091835,93268.0,93267.0,0.3487]
[1745508280218,0.1091835,93268.0,93267.0,0.4558847]
[1745508280608,0.1091835,93268.0,93267.0,0.5558847]
[1745508281513,0.002,93268.0,93267.0,0.5558847]
[1745508281719,0.1091835,93268.0,93267.0,0.5558847]
[1745508282913,0.1091835,93268.0,93267.0,0.5458847]
[1745508283222,0.1071454,93304.0,93267.0,0.86592]
[1745508283429,0.1071445,93303.0,93302.0,0.1607139]
[1745508283618,0.0535711,93305.0,93304.0,0.1071422]
[1745508283818,0.0535711,93305.0,93304.0,0.2471422]
[1745508284016,0.00160906,93308.0,93307.0,0.1071387]
[1745508284321,0.10874666,93308.0,93307.0,0.2671387]
[1745508284520,0.10874666,93308.0,93307.0,0.1190407]
[1745508284711,0.107141,93305.0,93304.0,0.172]
[1745508285327,0.1071514,93296.0,93295.0,0.0113757]
[1745508285627,0.1071594,93289.0,93288.0,0.2204582]
[1745508285824,0.1071594,93289.0,93288.0,0.19457046]
[1745508286224,0.1071594,93289.0,93288.0,0.36657046]
[1745508286927,0.1071594,93289.0,93288.0,0.36668343]
[1745508287726,0.1071594,93289.0,93288.0,0.30119641]
[1745508288132,0.1621594,93289.0,93288.0,0.07029641]
[1745508288627,0.1621594,93289.0,93280.0,0.1079847]
[1745508288628,0.0535815,93286.0,93280.0,0.0544]
[1745508288817,0.1071675,93282.0,93281.0,0.07027202]
[1745508289328,0.1071675,93282.0,93281.0,0.17744062]
[1745508289624,0.1071675,93282.0,93281.0,0.07027202]
[1745508290116,0.1071675,93282.0,93281.0,0.12427202]
[1745508290312,0.1071675,93282.0,93281.0,0.07327202]
[1745508290521,0.46781265,93282.0,93281.0,0.003]
[1745508290934,0.96781265,93282.0,93281.0,0.003]
[1745508291129,1.07821265,93282.0,93281.0,0.003]
[1745508291519,0.1071778,93273.0,93272.0,0.054]
[1745508292015,0.1071778,93273.0,93272.0,0.154]
[1745508292218,0.1071778,93273.0,93272.0,0.326]
[1745508292618,0.0538,93274.0,93272.0,0.366]
[1745508292823,0.0535853,93280.0,93279.0,0.1071709]
[1745508293039,0.1071691,93281.0,93280.0,0.1071686]
[1745508293326,0.1071691,93281.0,93280.0,0.055]
[1745508293516,0.1650691,93281.0,93280.0,0.055]
[1745508293719,0.2199691,93281.0,93280.0,0.205]
[1745508293929,0.2199691,93281.0,93280.0,0.055]
[1745508294130,0.2199691,93281.0,93280.0,0.227]
[1745508294720,0.2199691,93281.0,93280.0,0.3341698]
[1745508295234,0.2199691,93281.0,93280.0,0.1621698]
[1745508295533,0.2199691,93281.0,93280.0,0.3121698]
[1745508295832,0.2199691,93281.0,93280.0,0.1621698]
[1745508296331,0.2199691,93281.0,93280.0,0.1631698]
[1745508297423,0.2199691,93281.0,93280.0,0.056]
[1745508297823,0.2199691,93281.0,93280.0,0.001]
[1745508298231,0.2209691,93281.0,93280.0,0.002]
[1745508299524,0.2209691,93281.0,93280.0,0.1091698]
[1745508299821,0.2209691,93281.0,93280.0,0.2691698]
[1745508300440,0.3608,93305.0,93293.0,0.1607264]
[1745508300441,0.1071579,93294.0,93293.0,0.1607264]
[1745508300918,0.1071571,93292.0,93291.0,0.1071562]
[1745508301121,0.1071571,93292.0,93291.0,0.2184562]
[1745508301428,0.1071571,93292.0,93291.0,0.1113]
[1745508301625,0.1071571,93292.0,93291.0,0.2184571]
[1745508301823,0.1071594,93289.0,93288.0,0.05358]
[1745508302531,0.1071606,93288.0,93287.0,0.1653617]
[1745508303130,0.1071606,93288.0,93287.0,0.2232617]
[1745508303633,0.1665606,93288.0,93287.0,0.2232617]
[1745508304022,0.1081606,93288.0,93287.0,0.2242617]
[1745508305025,0.1091606,93288.0,93287.0,0.1171]
[1745508305331,0.5858606,93288.0,93287.0,0.001]
[1745508306829,1.0858606,93288.0,93287.0,0.001]
[1745508307021,0.1071801,93271.0,93255.0,0.00536161]
[1745508307226,0.1071801,93271.0,93270.0,0.2948813]
[1745508307831,0.1071801,93271.0,93270.0,0.1877]
[1745508308134,0.1071801,93271.0,93270.0,0.1917]
[1745508308135,0.1081801,93271.0,93270.0,0.1917]
[1745508308321,0.1661801,93271.0,93270.0,0.4708813]
[1745508309030,0.001,93271.0,93270.0,0.5304813]
[1745508309431,0.1091801,93271.0,93270.0,0.5334813]
[1745508311240,0.1674801,93271.0,93270.0,0.5334813]
[1745508311735,0.1674801,93271.0,93270.0,0.4263]
[1745508312031,0.1674801,93271.0,93270.0,0.3667]
[1745508312237,0.1674801,93271.0,93270.0,0.1947]
[1745508312835,0.1674801,93271.0,93270.0,0.3018813]
[1745508313035,0.1674801,93271.0,93270.0,0.2533]
[1745508313235,0.1674801,93271.0,93270.0,0.3604813]
[1745508314340,0.1091801,93271.0,93270.0,0.5324813]
[1745508314640,0.1091801,93271.0,93270.0,0.4253]
[1745508314845,0.1091801,93271.0,93270.0,0.5324813]
[1745508315236,0.1640801,93271.0,93270.0,0.5324813]
[1745508315444,0.1640801,93271.0,93270.0,0.4253]
[1745508316043,0.1640801,93271.0,93270.0,0.3667]
[1745508316230,0.5248801,93271.0,93270.0,0.137]
[1745508316746,0.5844801,93271.0,93270.0,0.137]
[1745508317332,0.1071847,93267.0,93266.0,0.0010722]
[1745508317546,0.1071893,93263.0,93262.0,0.0603]
[1745508317742,0.1071962,93257.0,93256.0,0.0583]
[1745508318433,0.1071962,93257.0,93256.0,0.1186]
[1745508318629,0.2226962,93257.0,93256.0,0.1186]
[1745508319028,0.2236962,93257.0,93256.0,0.1226]
[1745508319241,0.2236962,93257.0,93256.0,0.004]
[1745508319443,0.2987362,93257.0,93256.0,0.004]
[1745508319648,0.1071973,93256.0,93252.0,0.57791134]
[1745508320036,0.2235973,93256.0,93252.0,0.57791134]
[1745508320437,0.2235973,93256.0,93253.0,0.0607]
[1745508321643,0.7255973,93256.0,93252.0,0.3608]
[1745508322045,0.7255973,93256.0,93253.0,0.0607]
[1745508322743,0.7255973,93256.0,93251.0,0.0559]
[1745508323437,0.7255973,93256.0,93249.0,0.0604]
[1745508323438,0.1072042,93250.0,93249.0,0.0604]
[1745508323643,0.1072134,93242.0,93241.0,0.0548]
[1745508323942,0.1608281,93239.0,93238.0,0.1072177]
[1745508324249,0.1608281,93239.0,93238.0,0.3792177]
[1745508324746,0.1608281,93239.0,93238.0,0.38734839]
[1745508325332,0.2193281,93239.0,93238.0,0.44774839]
[1745508325750,0.2193281,93239.0,93238.0,0.3324]
[1745508326044,0.2799281,93239.0,93238.0,0.3324]
[1745508326236,0.2799281,93239.0,93238.0,0.1604]
[1745508326942,0.7809281,93239.0,93238.0,0.2208]
[1745508327147,0.7203281,93239.0,93238.0,0.328018]
[1745508327847,0.5595,93239.0,93238.0,0.328018]
[1745508328049,0.502,93239.0,93238.0,0.328018]
[1745508328349,0.002,93239.0,93238.0,0.500018]
[1745508328544,0.1092169,93239.0,93238.0,0.500018]
[1745508329942,0.1092169,93239.0,93238.0,0.60726999]
[1745508331256,0.1092169,93239.0,93238.0,0.500018]
[1745508331942,0.002,93239.0,93238.0,0.500018]
[1745508332145,0.1092169,93239.0,93238.0,0.500018]
[1745508332350,0.002,93239.0,93238.0,0.500018]
[1745508332943,0.1092169,93239.0,93238.0,0.500018]
[1745508334050,0.002,93239.0,93238.0,0.500018]
[1745508334442,0.1092169,93239.0,93238.0,0.500018]
[1745508338559,0.1092169,93239.0,93238.0,0.3928]
[1745508338757,0.1092169,93239.0,93238.0,0.500018]
[1745508339257,0.2282169,93239.0,93238.0,0.1614]
[1745508339867,0.2282169,93239.0,93238.0,0.268618]
[1745508340264,0.2282169,93239.0,93238.0,0.101]
[1745508340570,0.2282169,93239.0,93238.0,0.208218]
[1745508341280,0.2282169,93239.0,93238.0,0.101]
[1745508341569,0.7282169,93239.0,93238.0,0.101]
[1745508341772,0.7282169,93239.0,93238.0,0.208218]
[1745508341965,0.7282169,93239.0,93238.0,0.101]
[1745508344073,0.621,93239.0,93238.0,0.208218]
[1745508344374,0.502,93239.0,93238.0,0.268218]
[1745508344770,0.502,93239.0,93238.0,0.385318]
[1745508345072,0.002,93239.0,93238.0,0.385318]
[1745508345378,0.002,93239.0,93238.0,0.557318]
[1745508347976,0.1092169,93239.0,93238.0,0.557318]
[1745508348372,0.002,93239.0,93238.0,0.557318]
[1745508348866,0.0536001,93254.0,93253.0,0.1072008]
[1745508349063,0.1608031,93254.0,93253.0,0.2672008]
[1745508349264,0.1608031,93254.0,93253.0,0.4392008]
[1745508349769,0.1608031,93254.0,93253.0,0.4961008]
[1745508350169,0.1608031,93254.0,93253.0,0.3241008]
[1745508350378,0.1091996,93254.0,93253.0,0.3846008]
[1745508352574,0.1091996,93254.0,93253.0,0.2246008]
[1745508353380,0.1091996,93254.0,93253.0,0.002]
[1745508354378,0.107218,93238.0,93230.0,0.36884783]
[1745508354672,0.107218,93238.0,93237.0,0.29711134]
[1745508355273,0.224618,93238.0,93237.0,0.29711134]
[1745508355677,0.225618,93238.0,93237.0,0.29911134]
[1745508355881,0.226618,93238.0,93237.0,0.40733054]
[1745508356178,0.226618,93238.0,93237.0,0.30011134]
[1745508356580,0.226618,93238.0,93237.0,0.083]
[1745508356881,0.226618,93238.0,93237.0,0.103]
[1745508358179,0.726618,93238.0,93237.0,0.103]
[1745508361476,0.726618,93238.0,93237.0,0.102]
[1745508361678,0.726618,93238.0,93237.0,0.1892192]
[1745508361679,0.6194,93238.0,93237.0,0.1892192]
[1745508361881,0.726618,93238.0,93237.0,0.2556]
[1745508362069,0.726618,93238.0,93237.0,0.1976]
[1745508362270,0.726618,93238.0,93237.0,0.254]
[1745508363175,0.726618,93238.0,93237.0,0.082]
[1745508363676,0.726618,93238.0,93237.0,0.092]
[1745508364685,0.726618,93238.0,93237.0,0.091]
[1745508364984,0.726618,93238.0,93237.0,0.092]
[1745508369677,1.087418,93238.0,93237.0,0.092]
[1745508370576,0.502,93238.0,93237.0,0.1092192]
[1745508370780,0.609218,93238.0,93237.0,0.4134192]
[1745508370978,0.609218,93238.0,93237.0,0.3062]
[1745508371184,0.609218,93238.0,93237.0,0.4782]
[1745508371371,0.109218,93238.0,93237.0,0.5854192]
[1745508372278,0.109218,93238.0,93237.0,0.4782]
[1745508372474,0.109218,93238.0,93237.0,0.5854192]
[1745508373170,0.109218,93238.0,93237.0,0.4134192]
[1745508374272,0.109218,93238.0,93237.0,0.3062]
[1745508374478,0.109218,93238.0,93237.0,0.4134192]
[1745508374880,0.002,93238.0,93237.0,0.4134192]
[1745508375081,0.109218,93238.0,93237.0,0.5854192]
[1745508381681,0.002,93238.0,93237.0,0.5854192]
[1745508381884,0.109218,93238.0,93237.0,0.5854192]
[1745508385891,0.0536058,93244.0,93242.0,0.1072123]
[1745508386084,0.1072125,93243.0,93242.0,0.2672123]
[1745508386383,0.1090021,93251.0,93248.0,0.1072042]
[1745508386701,0.107206,93249.0,93248.0,0.3208069]
[1745508386889,0.107195,93259.0,93258.0,0.1071946]
[1745508387086,0.107195,93259.0,93258.0,0.25840166]
[1745508387482,0.163395,93259.0,93258.0,0.25840166]
[1745508388884,0.165395,93259.0,93258.0,0.25940166]
[1745508389490,0.109195,93259.0,93258.0,0.25940166]
[1745508390480,0.172195,93259.0,93258.0,0.25940166]
[1745508390687,0.172195,93259.0,93258.0,0.001]
[1745508390886,0.172195,93259.0,93258.0,0.108195]
[1745508391188,0.233395,93259.0,93258.0,0.001]
[1745508391980,0.233395,93259.0,93258.0,0.108195]
[1745508392777,0.109195,93259.0,93258.0,0.108195]
[1745508392982,0.228395,93259.0,93258.0,0.001]
[1745508400892,0.228395,93259.0,93258.0,0.108195]
[1745508401191,0.3608,93264.0,93258.0,0.108195]
[1745508401192,0.00160945,93274.0,93273.0,0.1071778]
[1745508401400,0.10878615,93274.0,93273.0,0.2571778]
[1745508401789,0.10878615,93274.0,93273.0,0.15]
[1745508402387,0.11378615,93274.0,93273.0,0.2705]
[1745508402790,0.17488615,93274.0,93273.0,0.2705]
[1745508403399,0.17988615,93274.0,93273.0,0.2715]
[1745508404800,0.17988615,93274.0,93273.0,0.1215]
[1745508407500,0.17988615,93274.0,93273.0,0.3786778]
[1745508409302,0.11878615,93274.0,93273.0,0.3786778]
[1745508410203,0.11878615,93274.0,93273.0,0.5506778]
[1745508411108,0.01160945,93274.0,93273.0,0.5506778]
[1745508411601,0.11878615,93274.0,93273.0,0.5506778]
[1745508414807,0.11878615,93274.0,93273.0,0.4006778]
[1745508415110,0.11878615,93274.0,93273.0,0.5406778]
[1745508415297,0.11878615,93274.0,93273.0,0.3391778]
[1745508415610,0.47958615,93274.0,93273.0,0.173]
[1745508415909,0.53788615,93274.0,93273.0,0.173]
[1745508416203,0.37240945,93274.0,93273.0,0.1081778]
[1745508416411,0.11878615,93274.0,93273.0,0.2381778]
[1745508417011,0.11878615,93274.0,93273.0,0.3593778]
[1745508417810,0.11878615,93274.0,93273.0,0.1702778]
[1745508417998,0.11878615,93274.0,93273.0,0.0631]
[1745508419008,0.11878615,93274.0,93273.0,0.001]
[1745508421998,0.11878615,93274.0,93273.0,0.2481778]
[1745508422198,0.11878615,93274.0,93273.0,0.141]
[1745508422500,0.11878615,93274.0,93273.0,0.001]
[1745508422802,0.11878615,93274.0,93273.0,0.0609]
[1745508423403,0.11878615,93274.0,93273.0,0.001]
[1745508423806,0.19358615,93274.0,93273.0,0.001]
[1745508424105,0.1919767,93274.0,93273.0,0.001]
[1745508424497,0.6919767,93274.0,93273.0,0.001]
[1745508430007,0.6919767,93274.0,93273.0,0.1081778]
[1745508430607,0.51,93274.0,93273.0,0.2581778]
[1745508430813,0.51,93274.0,93273.0,0.3636778]
[1745508431313,0.1819583,93290.0,93289.0,0.1071594]
[1745508431505,0.0748,93290.0,93289.0,0.2371594]
[1745508432012,0.0748,93290.0,93289.0,0.36415227]
[1745508432204,0.1071583,93290.0,93289.0,0.53615227]
[1745508432513,0.0535768,93295.0,93294.0,0.1071537]
[1745508432712,0.0535768,93295.0,93294.0,0.24503848]
[1745508433103,0.0535768,93295.0,93294.0,0.36343848]
[1745508433410,0.0535768,93295.0,93294.0,0.37916559]
[1745508433817,0.0535768,93295.0,93294.0,0.27201189]
[1745508434018,0.1118768,93295.0,93294.0,0.27201189]
[1745508434515,0.1188768,93295.0,93294.0,0.12728478]
[1745508434712,0.1188768,93295.0,93294.0,0.001]
[1745508434913,0.1071583,93290.0,93289.0,0.001]
[1745508435107,0.1071732,93277.0,93276.0,0.0585]
[1745508436023,0.2262732,93277.0,93276.0,0.0585]
[1745508436213,0.2262732,93277.0,93276.0,0.1656744]
[1745508436510,0.2262732,93277.0,93276.0,0.23718771]
[1745508436700,0.1664732,93277.0,93276.0,0.37834371]
[1745508436906,0.1684732,93277.0,93276.0,0.37834371]
[1745508437512,0.0613,93277.0,93276.0,0.37834371]
[1745508437715,0.004,93277.0,93276.0,0.37934371]
[1745508438010,0.1111732,93277.0,93276.0,0.37934371]
[1745508440402,0.1111732,93277.0,93276.0,0.39490258]
[1745508443413,0.1111732,93277.0,93276.0,0.39495125]
[1745508443907,0.1071633,93286.0,93285.0,0.107164]
[1745508444108,0.2355432,93288.0,93287.0,0.1071617]
[1745508444314,0.2355432,93288.0,93287.0,0.62356924]
[1745508444921,0.2355432,93288.0,93287.0,0.68626924]
[1745508445113,0.0748,93288.0,93287.0,0.68626924]
[1745508446520,0.0788,93288.0,93287.0,0.68726924]
[1745508446824,0.1111606,93288.0,93287.0,0.68726924]
[1745508447122,0.1161606,93288.0,93287.0,0.68849489]
[1745508447623,0.1161606,93288.0,93287.0,0.32769489]
[1745508448525,0.1161606,93288.0,93287.0,0.18769489]
[1745508448714,0.1769606,93288.0,93287.0,0.18769489]
[1745508449117,0.1769606,93288.0,93287.0,0.01783319]
[1745508449315,0.2399606,93288.0,93287.0,0.002]
[1745508449817,0.1071801,93271.0,93255.0,0.3608]
[1745508450018,0.1071893,93263.0,93254.0,0.33708425]
[1745508450214,0.1071893,93263.0,93254.0,0.32590035]
[1745508450413,0.1071893,93263.0,93257.0,0.1071955]
[1745508450619,0.1071893,93263.0,93256.0,0.0535984]
[1745508450620,0.1071893,93263.0,93255.0,0.117]
[1745508450929,0.5938893,93263.0,93255.0,0.117]
[1745508451125,0.5938893,93263.0,93262.0,0.27252419]
[1745508451822,0.5938893,93263.0,93262.0,0.004]
[1745508452218,1.0938893,93263.0,93262.0,0.004]
[1745508452626,1.0938893,93263.0,93262.0,0.002]
[1745508453119,0.1071973,93256.0,93255.0,0.0593]
[1745508453319,0.1819173,93256.0,93255.0,0.1693]
[1745508453730,0.1819173,93256.0,93255.0,0.11]
[1745508453926,0.3063173,93256.0,93255.0,0.11]
[1745508454323,0.3063173,93256.0,93255.0,0.112]
[1745508455223,0.2430173,93256.0,93255.0,0.112]
[1745508455426,0.2430173,93256.0,93255.0,0.2191985]
[1745508455930,0.2430173,93256.0,93255.0,0.2211985]
[1745508456129,0.2430173,93256.0,93255.0,0.3931985]
[1745508457121,0.0535937,93265.0,93260.0,0.0535958]
[1745508457326,0.1708904,93262.0,93261.0,0.2956916]
[1745508457522,0.1708904,93262.0,93261.0,0.4156916]
[1745508457727,0.1708904,93262.0,93261.0,0.1885]
[1745508457928,0.2316904,93262.0,93261.0,0.1885]
[1745508458230,0.2316904,93262.0,93261.0,0.3605]
[1745508458426,0.2316904,93262.0,93261.0,0.4676916]
[1745508458827,0.0637,93262.0,93261.0,0.4676916]
[1745508459032,0.1708904,93262.0,93261.0,0.5876916]
[1745508459235,0.1708904,93262.0,93261.0,0.4676916]
[1745508460334,0.2332904,93262.0,93261.0,0.4676916]
[1745508460636,0.2332904,93262.0,93261.0,0.4686916]
[1745508461137,0.2332904,93262.0,93261.0,0.3615]
[1745508461336,0.2332904,93262.0,93261.0,0.4686916]
[1745508463141,0.2332904,93262.0,93261.0,0.3615]
[1745508463639,0.2332904,93262.0,93261.0,0.4686916]
[1745508464730,0.1708904,93262.0,93261.0,0.6086916]
[1745508465635,0.1708904,93262.0,93261.0,0.4686916]
[1745508466740,0.1708904,93262.0,93261.0,0.2364]
[1745508467037,0.1708904,93262.0,93261.0,0.173]
[1745508467242,0.5316904,93262.0,93261.0,0.001]
[1745508467843,1.0316904,93262.0,93261.0,0.001]
[1745508473637,0.0536005,93253.0,93241.0,0.1696142]
[1745508473838,0.10721,93245.0,93244.0,0.0587]
[1745508474741,0.10721,93245.0,93244.0,0.06663386]
[1745508475540,0.10721,93245.0,93244.0,0.0587]
[1745508475740,0.1072134,93242.0,93241.0,0.0644]
[1745508475941,0.1072134,93242.0,93241.0,0.003]
[1745508476735,0.1707134,93242.0,93237.0,0.0582]
[1745508476940,0.107218,93238.0,93237.0,0.0582]
[1745508477244,0.181858,93238.0,93237.0,0.1654192]
[1745508477545,0.181858,93238.0,93237.0,0.0582]
[1745508478935,0.181858,93238.0,93237.0,0.1205]
[1745508479131,0.182858,93238.0,93237.0,0.1265]
[1745508479348,0.183858,93238.0,93237.0,0.1325]
[1745508480547,0.183858,93238.0,93237.0,0.2397192]
[1745508480947,0.183858,93238.0,93237.0,0.1325]
[1745508481447,0.183858,93238.0,93237.0,0.2397192]
[1745508482445,0.183858,93238.0,93237.0,0.012]
[1745508482746,0.544658,93238.0,93237.0,0.012]
[1745508483145,0.664858,93238.0,93237.0,0.012]
[1745508483338,1.164858,93238.0,93237.0,0.012]
[1745508484032,0.0536126,93232.0,93228.0,0.0617]
[1745508484238,0.4680284,93229.0,93228.0,0.0617]
[1745508485344,0.5909284,93229.0,93228.0,0.0687]
[1745508485840,0.2301284,93229.0,93228.0,0.0687]
[1745508486037,0.1082284,93229.0,93228.0,0.1759295]
[1745508486247,0.1082284,93229.0,93228.0,0.3479295]
[1745508486446,0.6082284,93229.0,93228.0,0.3479295]
[1745508486749,0.6092284,93229.0,93228.0,0.3479295]
[1745508487747,0.1092284,93229.0,93228.0,0.3479295]
[1745508489749,0.002,93229.0,93198.0,0.3608]
[1745508489951,0.1072422,93217.0,93209.0,0.1247]
[1745508490141,0.1072422,93217.0,93201.0,0.01112593]
[1745508490142,0.43544,93217.0,93201.0,0.01112593]
[1745508490347,0.1072537,93207.0,93202.0,0.0596]
[1745508490544,0.1072537,93207.0,93202.0,0.2313592]
[1745508490853,0.1072537,93207.0,93202.0,0.1241]
[1745508491255,0.2267537,93207.0,93202.0,0.1241]
[1745508491765,0.7267537,93207.0,93202.0,0.1241]
[1745508492152,0.7277537,93207.0,93202.0,0.1241]
[1745508493151,0.7287537,93207.0,93206.0,0.00207289]
[1745508494141,0.8033937,93207.0,93206.0,0.10932769]
[1745508494456,0.8033937,93207.0,93206.0,0.00207289]
[1745508494457,0.7434937,93207.0,93206.0,0.00207289]
[1745508495156,0.2434937,93207.0,93206.0,0.00207289]
[1745508496056,0.7434937,93207.0,93206.0,0.00207289]
[1745508496355,0.1072606,93201.0,93200.0,0.1]
[1745508496549,0.4680606,93201.0,93200.0,0.1]
[1745508496946,0.1072664,93196.0,93195.0,0.0594]
[1745508497150,0.1072664,93196.0,93191.0,0.0604]
[1745508497151,0.107271,93192.0,93191.0,0.0604]
[1745508497357,0.468071,93192.0,93191.0,0.0604]
[1745508497855,0.587871,93192.0,93191.0,0.0604]
[1745508498257,0.588871,93192.0,93191.0,0.0604]
[1745508499550,0.527271,93192.0,93191.0,0.0604]
[1745508499854,0.527271,93192.0,93191.0,0.1206]
[1745508500156,0.528271,93192.0,93191.0,0.1206]
[1745508500456,0.528271,93192.0,93191.0,0.2278721]
[1745508500657,0.528271,93192.0,93191.0,0.12844844]
[1745508501152,0.528271,93192.0,93191.0,0.40772054]
[1745508501355,0.528271,93192.0,93191.0,0.30044844]
[1745508502556,0.002,93192.0,93191.0,0.54772054]
[1745508502761,0.109271,93192.0,93191.0,0.54772054]
[1745508503141,0.109271,93192.0,93191.0,0.40772054]
[1745508503345,0.109271,93192.0,93191.0,0.50772054]
[1745508503756,0.002,93192.0,93191.0,0.50772054]
[1745508505950,0.002,93192.0,93191.0,0.67502454]
[1745508509860,0.109271,93192.0,93191.0,0.40772054]
[1745508510062,0.528471,93192.0,93191.0,0.30044844]
[1745508510361,0.528471,93192.0,93191.0,0.40772054]
[1745508510560,0.528471,93192.0,93191.0,0.30044844]
[1745508511453,0.528471,93192.0,93191.0,0.40772054]
[1745508511959,0.528471,93192.0,93191.0,0.30044844]
[1745508512363,0.528471,93192.0,93191.0,0.2926]
[1745508512548,0.528471,93192.0,93191.0,0.351]
[1745508513156,0.528471,93192.0,93191.0,0.0584]
[1745508520569,0.167671,93192.0,93191.0,0.0584]
[1745508520771,0.002,93192.0,93191.0,0.4129761]
[1745508521160,0.002,93192.0,93191.0,0.5849761]
[1745508522572,0.00028,93199.0,93198.0,0.1072641]
[1745508522757,0.00028,93199.0,93198.0,0.2672641]
[1745508522962,0.1072602,93202.0,93201.0,0.1072606]
[1745508523268,0.1072602,93202.0,93201.0,0.2672606]
[1745508523863,0.1072578,93204.0,93203.0,0.1072571]
[1745508524164,0.1072578,93204.0,93203.0,0.2672571]
[1745508524364,0.00028,93208.0,93207.0,0.1072537]
[1745508524563,0.1075325,93208.0,93207.0,0.2472537]
[1745508524759,0.07456,93210.0,93209.0,0.1072514]
[1745508524971,0.1818102,93210.0,93209.0,0.2272514]
[1745508525157,0.1818102,93210.0,93209.0,0.3992514]
[1745508525353,0.1818102,93210.0,93209.0,0.2792514]
[1745508525565,0.1818102,93210.0,93209.0,0.172]
[1745508525759,0.1072502,93210.0,93209.0,0.172]
[1745508525965,0.1818102,93210.0,93209.0,0.172]
[1745508526165,0.1818102,93210.0,93209.0,0.2792514]
[1745508526755,0.1818102,93210.0,93209.0,0.4665514]
[1745508526954,0.1072502,93210.0,93209.0,0.4665514]
[1745508527370,0.1102502,93210.0,93209.0,0.4665514]
[1745508527575,0.003,93210.0,93209.0,0.4665514]
[1745508527766,0.1142502,93210.0,93209.0,0.4665514]
[1745508527962,0.007,93210.0,93209.0,0.4665514]
[1745508528266,0.1142502,93210.0,93209.0,0.4665514]
[1745508529168,0.007,93210.0,93209.0,0.4665514]
[1745508530270,0.1142502,93210.0,93209.0,0.4665514]
[1745508531468,0.1142502,93210.0,93209.0,0.3365514]
[1745508532173,0.1142502,93210.0,93209.0,0.4665514]
[1745508532475,0.1732502,93210.0,93209.0,0.4665514]
[1745508532867,0.066,93210.0,93209.0,0.4665514]
[1745508533068,0.1732502,93210.0,93209.0,0.4665514]
[1745508534578,0.1732502,93210.0,93209.0,0.3365514]
[1745508534968,0.1732502,93210.0,93209.0,0.4865514]
[1745508540472,0.1732502,93210.0,93209.0,0.3365514]
[1745508541176,0.1072698,93194.0,93183.0,0.3608]
[1745508541377,0.1072698,93194.0,93193.0,0.1139345]
[1745508541573,0.1072698,93194.0,93193.0,0.2139345]
[1745508541776,0.1645698,93194.0,93193.0,0.2139345]
[1745508541977,0.1072698,93194.0,93193.0,0.2139345]
[1745508542180,0.07448,93231.0,93209.0,0.1072514]
[1745508542479,0.1072472,93213.0,93209.0,0.6280514]
[1745508542678,0.003,93210.0,93209.0,0.6280514]
[1745508543069,0.003,93210.0,93209.0,0.9134514]
[1745508543473,0.004,93210.0,93209.0,0.9134514]
[1745508544282,0.007,93210.0,93209.0,0.9134514]
[1745508547592,0.1297,93210.0,93209.0,0.9134514]
[1745508550893,0.2369502,93210.0,93209.0,0.9134514]
[1745508551090,0.2369502,93210.0,93209.0,0.4857514]
[1745508551488,0.1297,93210.0,93209.0,0.4857514]
[1745508552001,0.2369502,93210.0,93209.0,0.4857514]
[1745508552389,0.1297,93210.0,93209.0,0.4857514]
[1745508552787,0.2369502,93210.0,93209.0,0.4857514]
[1745508554100,0.1297,93210.0,93209.0,0.4857514]